bitfinex/quotes_SOLUSD_20220208
["timestamp","ask_amount","ask_price","bid_price","bid_amount"]
[1644354675017,35.12500981,112.97,112.88,34.05389803]
[1644354675216,35.12500981,112.97,112.88,40.30389803]
[1644354675415,34.87500981,112.97,112.88,53.58669803]
[1644354676817,35.12500981,112.97,112.88,53.58669803]
[1644354677117,35.12500981,112.97,112.88,54.80063836]
[1644354677316,35.12500981,112.97,112.88,53.58669803]
[1644354678117,35.12500981,112.97,112.88,6.25]
[1644354678316,35.12500981,112.97,112.88,6.0]
[1644354678515,35.12500981,112.97,112.88,0.25]
[1644354678916,35.12500981,112.97,112.86,19.2855]
[1644354679118,35.12500981,112.97,112.86,60.55367123]
[1644354680621,35.12500981,112.97,112.86,61.76761156]
[1644354680821,34.87500981,112.97,112.86,63.76761156]
[1644354681021,46.5342,112.99,112.86,79.20050617]
[1644354681320,22.8506,113.0,112.9,13.2802]
[1644354681520,22.8506,113.0,112.9,21.6132]
[1644354681722,22.8506,113.0,112.9,27.8632]
[1644354681921,22.8506,113.0,112.9,8.583]
[1644354682122,43.20544798,112.99,112.9,14.333]
[1644354682422,43.20544798,112.99,112.9,8.583]
[1644354682650,43.20544798,112.99,112.9,0.25]
[1644354682821,90.93224798,112.99,112.9,0.25]
[1644354683421,90.93224798,112.99,112.88,8.1184613]
[1644354683823,90.93224798,112.99,112.88,19.5333]
[1644354684623,91.18224798,112.99,112.88,19.5333]
[1644354684924,91.18224798,112.99,112.88,19.2833]
[1644354685126,93.29000347,112.99,112.82,44.2889]
[1644354685326,15.75701379,112.98,112.79,7.0]
[1644354685524,15.75701379,112.98,112.77,57.7407]
[1644354685724,25.23775549,112.97,112.77,57.7407]
[1644354685924,50.1841544,112.96,112.78,39.63173086]
[1644354686223,52.29190989,112.96,112.88,2.0]
[1644354686825,2.10775549,112.95,112.88,2.0]
[1644354687026,10.75,112.94,112.88,2.0]
[1644354687426,39.59465218,112.93,112.88,2.0]
[1644354690626,39.59465218,112.93,112.8,13.2932]
[1644354690827,47.5172,112.92,112.8,13.2932]
[1644354691029,44.22549098,112.91,112.81,38.8689003]
[1644354691230,44.22549098,112.91,112.8,13.2932]
[1644354691828,44.47549098,112.91,112.8,13.2932]
[1644354692229,44.47549098,112.91,112.81,39.15854047]
[1644354692629,44.47549098,112.91,112.81,39.40854047]
[1644354693034,46.58324647,112.91,112.81,39.40854047]
[1644354693235,44.47549098,112.91,112.81,39.40854047]
[1644354693434,44.47549098,112.91,112.81,39.15854047]
[1644354694434,44.47549098,112.91,112.8,13.2932]
[1644354694634,44.47549098,112.91,112.78,13.2958]
[1644354694837,23.9592,112.9,112.78,13.2958]
[1644354695039,23.9592,112.9,112.78,19.2958]
[1644354695443,34.33152205,112.89,112.79,41.42550489]
[1644354695639,36.43927754,112.89,112.77,13.3216]
[1644354695839,47.9452,112.88,112.77,13.2976]
[1644354696238,47.9452,112.88,112.75,0.024]
[1644354696239,48.1952,112.88,112.75,0.024]
[1644354696441,50.30295549,112.88,112.75,0.024]
[1644354696638,39.68071405,112.87,112.75,0.024]
[1644354696840,52.98211405,112.87,112.75,13.324]
[1644354697042,34.69854476,112.85,112.76,0.024]
[1644354697239,34.69854476,112.85,112.75,13.324]
[1644354697661,34.69854476,112.85,112.75,0.024]
[1644354698062,34.69854476,112.85,112.74,35.72852035]
[1644354698063,34.69854476,112.85,112.73,13.326]
[1644354698260,36.80630025,112.85,112.74,0.024]
[1644354699067,34.69854476,112.85,112.74,52.74284116]
[1644354699269,34.69854476,112.85,112.74,65.40584116]
[1644354699564,34.69854476,112.85,112.74,71.40584116]
[1644354699764,34.69854476,112.85,112.74,65.40584116]
[1644354700366,34.69854476,112.85,112.74,52.99284116]
[1644354700568,34.69854476,112.85,112.74,52.96884116]
[1644354702665,34.94854476,112.85,112.74,52.96884116]
[1644354703270,34.94854476,112.85,112.74,52.71884116]
[1644354704168,34.69854476,112.85,112.74,147.12884116]
[1644354704367,34.69854476,112.85,112.74,147.15284116]
[1644354704568,23.8837,112.86,112.74,58.74284116]
[1644354704767,23.8837,112.86,112.75,0.024]
[1644354704967,23.8837,112.86,112.78,13.2968]
[1644354705368,23.8837,112.86,112.78,13.5468]
[1644354705571,43.90643119,112.85,112.76,0.024]
[1644354705772,43.90643119,112.85,112.75,0.024]
[1644354705969,56.76418668,112.85,112.72,0.024]
[1644354706169,56.76418668,112.85,112.7,0.024]
[1644354706370,57.01418668,112.85,112.7,0.024]
[1644354706769,68.20983119,112.85,112.72,13.3034]
[1644354706969,54.90643119,112.85,112.73,9.84165065]
[1644354707168,54.65643119,112.85,112.73,9.81765065]
[1644354707370,54.65643119,112.85,112.74,0.024]
[1644354707769,54.65643119,112.85,112.74,13.3247]
[1644354708173,56.76418668,112.85,112.74,13.5747]
[1644354708569,57.01418668,112.85,112.74,0.274]
[1644354708769,54.90643119,112.85,112.74,0.274]
[1644354708969,54.65643119,112.85,112.74,0.274]
[1644354709168,54.65643119,112.85,112.74,13.5756]
[1644354709569,2.10775549,112.84,112.74,0.024]
[1644354709769,12.85775549,112.84,112.74,0.024]
[1644354710068,10.75,112.84,112.74,0.024]
[1644354710268,92.08394805,112.83,112.7,34.13497253]
[1644354710470,92.08394805,112.83,112.71,0.024]
[1644354711273,104.94170354,112.83,112.71,0.024]
[1644354711771,104.94170354,112.83,112.68,0.024]
[1644354712170,118.24640354,112.83,112.68,13.3322]
[1644354712371,118.24640354,112.83,112.68,0.024]
[1644354712571,140.75610354,112.83,112.68,6.0]
[1644354712771,88.41,112.82,112.69,0.024]
[1644354713171,12.85775549,112.81,112.69,0.024]
[1644354713371,59.87100027,112.8,112.65,40.08176146]
[1644354713574,10.75,112.79,112.65,46.08176146]
[1644354713772,41.20302479,112.78,112.65,46.08176146]
[1644354714072,101.03562479,112.78,112.66,13.3106]
[1644354714272,101.03562479,112.78,112.67,0.024]
[1644354714471,101.03562479,112.78,112.67,2.85287107]
[1644354714672,101.03562479,112.78,112.68,0.024]
[1644354716878,101.28562479,112.78,112.68,0.024]
[1644354717075,101.28562479,112.78,112.65,13.3119]
[1644354717076,114.14338028,112.78,112.67,0.024]
[1644354717274,122.01538028,112.78,112.66,0.024]
[1644354717875,40.18404047,112.76,112.62,35.06331264]
[1644354718075,40.18404047,112.76,112.62,48.35581264]
[1644354718281,40.18404047,112.76,112.63,0.024]
[1644354718474,39.75042273,112.74,112.63,0.024]
[1644354718676,62.99832273,112.74,112.63,0.024]
[1644354720075,63.24832273,112.74,112.63,0.024]
[1644354720476,37.55493725,112.72,112.63,0.024]
[1644354720874,37.55493725,112.72,112.64,7.84731989]
[1644354721278,23.4979,112.74,112.64,8.09731989]
[1644354721477,23.4979,112.74,112.64,8.12131989]
[1644354721679,23.2479,112.74,112.64,8.09731989]
[1644354721877,23.9085,112.75,112.64,53.73445456]
[1644354722076,23.9085,112.75,112.65,10.75]
[1644354722277,34.34471795,112.76,112.66,30.06867814]
[1644354722677,34.34471795,112.76,112.66,36.06867814]
[1644354722877,34.34471795,112.76,112.66,36.31867814]
[1644354723277,34.59471795,112.76,112.66,36.31867814]
[1644354723477,23.5916,112.8,112.68,13.3087]
[1644354723677,23.5916,112.8,112.68,19.3087]
[1644354723879,23.5916,112.8,112.69,10.774]
[1644354724077,23.5916,112.8,112.7,0.024]
[1644354724479,37.37911048,112.79,112.7,12.84195439]
[1644354724678,37.37911048,112.79,112.7,18.84195439]
[1644354724878,37.37911048,112.79,112.7,19.09195439]
[1644354725279,37.37911048,112.79,112.7,18.81795439]
[1644354725481,37.37911048,112.79,112.7,19.3062]
[1644354726382,37.37911048,112.79,112.7,57.59993385]
[1644354726782,37.37911048,112.79,112.7,57.84993385]
[1644354726981,23.5916,112.8,112.7,57.84993385]
[1644354727182,23.5916,112.8,112.7,67.12293385]
[1644354727384,24.4863,112.82,112.7,67.14693385]
[1644354727583,128.77293034,112.89,112.7,77.87293385]
[1644354727883,47.9573,112.89,112.76,13.2993]
[1644354728090,40.56658514,112.88,112.77,38.29373385]
[1644354728282,40.56658514,112.88,112.77,50.51972874]
[1644354728482,4.62554245,112.91,112.77,50.51972874]
[1644354728483,4.62554245,112.91,112.78,1.22599489]
[1644354728684,37.87463233,112.95,112.79,10.75]
[1644354728885,4.6247146,112.93,112.8,88.41]
[1644354729083,4.6247146,112.93,112.81,10.75]
[1644354729286,4.6247146,112.93,112.81,11.0]
[1644354729484,38.30171579,112.92,112.83,4.59289868]
[1644354729684,38.30171579,112.92,112.83,17.23989868]
[1644354729886,4.6247146,112.93,112.83,23.48989868]
[1644354730088,4.6247146,112.93,112.84,1.22599489]
[1644354730288,4.6247146,112.93,112.85,10.75]
[1644354730587,2.10775549,112.98,112.85,58.94004686]
[1644354730787,12.85775549,112.98,112.85,0.25]
[1644354730989,12.85775549,112.98,112.8,8.83569132]
[1644354731189,24.6145,112.97,112.8,17.0]
[1644354731417,10.75,112.96,112.8,17.0]
[1644354731590,103.94357493,112.96,112.84,13.29]
[1644354731789,103.94357493,112.96,112.84,0.25]
[1644354732090,41.540009,112.94,112.84,0.25]
[1644354732287,41.540009,112.94,112.8,6.0]
[1644354732489,37.12145549,112.93,112.8,6.0]
[1644354732694,37.12145549,112.93,112.77,6.0]
[1644354732889,13.2967,112.9,112.79,13.297]
[1644354733289,44.85601286,112.89,112.79,13.297]
[1644354734693,58.15321286,112.89,112.77,13.2983]
[1644354734890,82.45781286,112.89,112.77,13.2983]
[1644354735090,82.45781286,112.89,112.77,13.5483]
[1644354735290,82.45781286,112.89,112.77,56.19975664]
[1644354736091,82.70781286,112.89,112.77,13.5483]
[1644354736295,84.81556835,112.89,112.77,13.5483]
[1644354736494,10.75,112.88,112.77,13.5483]
[1644354736690,24.0487,112.88,112.77,13.5483]
[1644354736992,39.56201738,112.87,112.77,13.5483]
[1644354737193,39.56201738,112.87,112.77,13.2983]
[1644354737796,39.56201738,112.87,112.77,13.5483]
[1644354738797,52.86141738,112.87,112.77,13.5483]
[1644354739001,52.86141738,112.87,112.78,2.14919539]
[1644354739200,52.86141738,112.87,112.77,13.2983]
[1644354740998,52.86141738,112.87,112.77,13.5483]
[1644354741501,52.86141738,112.87,112.77,43.81640238]
[1644354741701,52.86141738,112.87,112.77,13.2983]
[1644354741899,52.86141738,112.87,112.75,13.3249]
[1644354742098,76.01391738,112.87,112.75,13.3249]
[1644354742302,76.01391738,112.87,112.75,0.024]
[1644354742303,12.85775549,112.86,112.75,0.024]
[1644354742500,13.3045,112.83,112.75,0.024]
[1644354742799,42.79469232,112.82,112.73,0.024]
[1644354742998,42.79469232,112.82,112.72,6.0]
[1644354743199,42.79469232,112.82,112.72,0.024]
[1644354743398,90.00959232,112.82,112.71,131.8054]
[1644354743798,90.00959232,112.82,112.71,169.8207751]
[1644354744400,90.00959232,112.82,112.71,163.8207751]
[1644354744600,90.00959232,112.82,112.71,164.0707751]
[1644354744802,103.31499232,112.82,112.71,164.0707751]
[1644354746201,103.56499232,112.82,112.71,51.5707751]
[1644354749235,47.2149,112.82,112.71,154.31422437]
[1644354749432,47.2149,112.82,112.71,160.31422437]
[1644354749629,47.2149,112.82,112.71,184.40422437]
[1644354749831,47.2149,112.82,112.71,193.1700768]
[1644354750230,91.73308125,112.82,112.71,193.1700768]
[1644354750635,91.98308125,112.82,112.71,193.1700768]
[1644354750840,23.9344,112.87,112.71,193.1700768]
[1644354751034,10.75,112.87,112.76,13.2982]
[1644354751233,10.75,112.87,112.76,13.5482]
[1644354751834,60.11635083,112.86,112.76,13.5482]
[1644354752137,60.11635083,112.86,112.77,51.2906751]
[1644354752334,60.11635083,112.86,112.77,51.5406751]
[1644354752533,46.81595083,112.86,112.77,51.5406751]
[1644354752935,60.11605083,112.86,112.77,51.2906751]
[1644354753536,60.36605083,112.86,112.77,51.2906751]
[1644354754333,60.36605083,112.86,112.77,51.5406751]
[1644354754835,60.36605083,112.86,112.77,38.2413751]
[1644354755435,60.36605083,112.86,112.77,0.25]
[1644354755635,60.36605083,112.86,112.76,13.5507]
[1644354756335,60.36605083,112.86,112.77,32.57547933]
[1644354756536,60.36605083,112.86,112.77,45.87467933]
[1644354758041,60.36605083,112.86,112.77,13.2992]
[1644354758340,60.36605083,112.86,112.74,44.3545]
[1644354758539,60.36605083,112.86,112.74,50.3545]
[1644354758945,60.36605083,112.86,112.75,38.92792036]
[1644354759142,60.36605083,112.86,112.75,44.92792036]
[1644354759343,60.11605083,112.86,112.75,45.17792036]
[1644354759740,60.11605083,112.86,112.76,13.2999]
[1644354760143,63.47740263,112.86,112.74,0.024]
[1644354760345,48.3182,112.85,112.74,0.024]
[1644354760544,13.303,112.83,112.74,0.024]
[1644354760941,44.90227925,112.82,112.74,0.024]
[1644354761143,44.90227925,112.82,112.74,13.3273]
[1644354762242,44.90227925,112.82,112.74,13.5773]
[1644354762843,44.90227925,112.82,112.74,13.3273]
[1644354763644,44.90227925,112.82,112.74,13.5773]
[1644354763844,44.90227925,112.82,112.74,44.63643954]
[1644354764244,44.90227925,112.82,112.74,13.3273]
[1644354767146,44.90227925,112.82,112.75,10.52258845]
[1644354767349,44.90227925,112.82,112.75,24.07408845]
[1644354767647,45.15227925,112.82,112.75,13.3015]
[1644354767846,45.15227925,112.82,112.75,13.5515]
[1644354768446,44.90227925,112.82,112.75,13.5515]
[1644354768646,44.90227925,112.82,112.75,50.01704411]
[1644354769047,22.6836,112.83,112.75,50.01704411]
[1644354769449,22.6836,112.83,112.75,56.01704411]
[1644354770151,34.80457031,112.82,112.75,56.01704411]
[1644354771348,35.05457031,112.82,112.75,56.01704411]
[1644354773248,0.25,112.82,112.75,56.01704411]
[1644354773448,23.7601,112.85,112.75,56.01704411]
[1644354773649,1.25359631,112.86,112.75,56.01704411]
[1644354773849,5.87779431,112.87,112.76,99.16]
[1644354774050,1.25359631,112.87,112.79,13.2944]
[1644354774250,38.15694516,112.86,112.79,46.53419997]
[1644354777152,38.15694516,112.86,112.79,19.5444]
[1644354777353,38.15694516,112.86,112.79,13.5444]
[1644354777556,38.15694516,112.86,112.79,13.2944]
[1644354777758,38.40694516,112.86,112.79,13.2944]
[1644354779356,38.15694516,112.86,112.79,13.2944]
[1644354779555,38.15694516,112.86,112.79,19.5444]
[1644354779955,38.15694516,112.86,112.79,19.2944]
[1644354780356,38.15694516,112.86,112.79,13.2944]
[1644354780554,61.18254516,112.86,112.74,55.0828]
[1644354780753,43.71339772,112.84,112.73,0.024]
[1644354780954,44.3295873,112.82,112.72,11.96603068]
[1644354781154,44.3295873,112.82,112.73,0.024]
[1644354781354,44.3295873,112.82,112.72,0.024]
[1644354781762,44.3295873,112.82,112.74,13.303]
[1644354782861,57.6327873,112.82,112.74,13.303]
[1644354784160,57.8827873,112.82,112.74,13.303]
[1644354784360,57.8827873,112.82,112.73,13.3291]
[1644354784561,57.8827873,112.82,112.73,13.3051]
[1644354784961,57.8827873,112.82,112.72,0.024]
[1644354785562,71.9941391,112.82,112.72,0.024]
[1644354786161,71.9941391,112.82,112.69,0.024]
[1644354786563,1.25359631,112.81,112.69,0.024]
[1644354786765,35.66840836,112.8,112.69,0.024]
[1644354786962,13.3075,112.78,112.7,13.3078]
[1644354787163,44.55308274,112.77,112.7,13.3078]
[1644354787866,44.55308274,112.77,112.69,0.024]
[1644354788063,44.55308274,112.77,112.67,1.21603068]
[1644354788064,57.86108274,112.77,112.67,0.024]
[1644354788665,46.1391,112.76,112.67,0.024]
[1644354788869,48.24685549,112.76,112.66,0.024]
[1644354789267,48.24685549,112.76,112.63,1.21603068]
[1644354789268,48.24685549,112.76,112.63,1.24003068]
[1644354789466,48.24685549,112.76,112.64,0.024]
[1644354789666,37.02945382,112.73,112.64,0.024]
[1644354789869,37.02945382,112.73,112.62,1.24003068]
[1644354790470,48.0662,112.72,112.62,0.024]
[1644354790666,48.0662,112.72,112.61,7.24003068]
[1644354790866,36.73310375,112.71,112.61,7.24003068]
[1644354791067,50.05000375,112.71,112.62,13.318]
[1644354791268,50.05000375,112.71,112.61,0.024]
[1644354791480,64.42075924,112.71,112.61,0.024]
[1644354791968,62.31300375,112.71,112.59,0.024]
[1644354792569,137.0,112.7,112.57,20.10041939]
[1644354792770,13.3215,112.67,112.57,20.10041939]
[1644354792972,21.2295,112.67,112.57,1.22447865]
[1644354793169,47.3165,112.66,112.53,1.22447865]
[1644354793368,43.5690654,112.65,112.53,1.22447865]
[1644354793571,22.8046,112.64,112.52,13.3281]
[1644354793773,13.3249,112.63,112.52,13.3281]
[1644354794170,13.5749,112.63,112.52,13.3281]
[1644354794472,38.64501331,112.62,112.52,56.82375583]
[1644354794870,38.64501331,112.62,112.52,62.82375583]
[1644354795300,38.64501331,112.62,112.52,19.3281]
[1644354795498,83.07511331,112.62,112.52,13.3281]
[1644354795695,13.3267,112.61,112.5,25.0]
[1644354796097,38.64501331,112.62,112.5,25.0]
[1644354796295,38.64501331,112.62,112.51,35.85447578]
[1644354796696,38.64501331,112.62,112.51,67.57303933]
[1644354796897,51.97111331,112.62,112.51,78.44605582]
[1644354797097,22.8046,112.64,112.51,53.95197092]
[1644354797296,23.0546,112.64,112.51,78.19605582]
[1644354797499,23.0546,112.64,112.51,88.94605582]
[1644354797699,23.0546,112.64,112.51,76.71808674]
[1644354797901,23.0546,112.64,112.51,64.45197092]
[1644354798102,41.87609039,112.63,112.51,63.95197092]
[1644354798498,55.20209039,112.63,112.51,53.20197092]
[1644354798900,55.20209039,112.63,112.51,19.5801]
[1644354799100,46.2264,112.62,112.51,19.5801]
[1644354799704,46.2264,112.62,112.51,13.5801]
[1644354799900,45.71321412,112.6,112.51,13.5801]
[1644354800104,45.71321412,112.6,112.51,13.3301]
[1644354800302,45.71321412,112.6,112.5,25.0]
[1644354800501,10.75,112.59,112.5,25.0]
[1644354800904,13.3334,112.57,112.5,25.0]
[1644354801304,43.75408993,112.56,112.5,25.0]
[1644354803406,23.7539,112.58,112.5,25.0]
[1644354804208,23.7539,112.58,112.5,25.25]
[1644354804409,23.7539,112.58,112.5,25.0]
[1644354804810,23.7539,112.58,112.5,25.25]
[1644354805212,44.29793131,112.57,112.5,25.25]
[1644354805411,44.29793131,112.57,112.5,25.0]
[1644354805713,44.29793131,112.57,112.5,38.5802]
[1644354806311,28.15791504,112.59,112.5,77.1435426]
[1644354806512,22.9651,112.6,112.5,77.1435426]
[1644354806713,17.90698293,112.63,112.5,77.1435426]
[1644354806913,47.3365,112.62,112.5,77.1435426]
[1644354807315,2.10775549,112.61,112.5,38.5802]
[1644354807514,2.10775549,112.61,112.5,38.3302]
[1644354807728,10.75,112.6,112.51,0.024]
[1644354807916,0.29100765,112.64,112.52,137.31287702]
[1644354808118,0.29100765,112.64,112.53,137.0]
[1644354808321,2.92,112.7,112.54,44.67523062]
[1644354808518,9.25564976,112.75,112.54,44.67523062]
[1644354808519,4.62196607,112.75,112.59,0.32036697]
[1644354808716,13.0567,112.77,112.61,0.44]
[1644354808920,217.7225,112.8,112.64,13.62081142]
[1644354809115,142.9579,112.8,112.65,0.024]
[1644354809317,42.41987327,112.79,112.65,19.9514326]
[1644354809516,42.41987327,112.79,112.67,44.6713918]
[1644354809719,42.41987327,112.79,112.68,34.36523062]
[1644354809918,42.41987327,112.79,112.68,74.26348522]
[1644354810118,42.41987327,112.79,112.68,76.38108789]
[1644354810321,42.41987327,112.79,112.69,29.1482546]
[1644354810618,42.41987327,112.79,112.7,10.75]
[1644354810821,42.41987327,112.79,112.7,0.25]
[1644354811018,2.10775549,112.78,112.7,0.25]
[1644354811421,46.98575288,112.77,112.7,0.25]
[1644354811718,47.23575288,112.77,112.7,0.25]
[1644354811920,47.23575288,112.77,112.68,13.3085]
[1644354812517,2.10775549,112.78,112.68,13.3085]
[1644354812718,2.10775549,112.8,112.72,0.32262709]
[1644354812917,123.553,112.88,112.74,13.2996]
[1644354813120,123.553,112.88,112.72,10.75]
[1644354813317,124.80659631,112.88,112.7,10.75]
[1644354813521,58.76066529,112.87,112.7,10.75]
[1644354813719,58.76066529,112.87,112.7,11.0]
[1644354813918,58.76066529,112.87,112.7,17.0]
[1644354814320,59.01066529,112.87,112.7,17.0]
[1644354814720,72.31156529,112.87,112.7,30.3059]
[1644354815220,72.31156529,112.87,112.67,0.024]
[1644354815221,1.25359631,112.85,112.67,0.024]
[1644354815420,2.10775549,112.86,112.66,0.024]
[1644354815421,12.00359631,112.84,112.66,0.024]
[1644354815720,10.75,112.83,112.66,10.774]
[1644354815921,10.75,112.83,112.69,13.3072]
[1644354815922,53.10879372,112.82,112.69,13.3072]
[1644354816320,55.21654921,112.82,112.69,13.3072]
[1644354816722,12.85775549,112.81,112.69,13.5572]
[1644354816923,12.85775549,112.81,112.69,13.3072]
[1644354817121,42.72922412,112.8,112.69,13.3072]
[1644354817323,56.03812412,112.8,112.67,13.3334]
[1644354817522,2.10775549,112.79,112.67,13.3334]
[1644354817720,2.10775549,112.79,112.67,19.3334]
[1644354818122,2.10775549,112.79,112.67,0.274]
[1644354818323,2.10775549,112.79,112.67,0.024]
[1644354818724,56.72606278,112.78,112.67,0.024]
[1644354819122,56.72606278,112.78,112.66,0.024]
[1644354819123,12.85775549,112.77,112.66,0.024]
[1644354819322,12.85775549,112.77,112.64,0.024]
[1644354819526,2.10775549,112.76,112.62,0.024]
[1644354819724,37.96397761,112.75,112.62,0.024]
[1644354820225,47.9831736,112.73,112.62,0.024]
[1644354820824,47.9831736,112.73,112.62,13.3401]
[1644354822227,47.9831736,112.73,112.62,13.5901]
[1644354822625,63.40832909,112.73,112.62,13.5901]
[1644354822826,63.40832909,112.73,112.62,0.274]
[1644354823225,63.40832909,112.73,112.62,0.024]
[1644354823425,63.65832909,112.73,112.6,0.024]
[1644354823827,63.65832909,112.73,112.61,13.3174]
[1644354824024,63.65832909,112.73,112.62,0.024]
[1644354824625,63.65832909,112.73,112.62,35.33319059]
[1644354824826,63.65832909,112.73,112.62,35.58319059]
[1644354825226,76.69132909,112.73,112.62,35.58319059]
[1644354825426,76.44132909,112.73,112.62,48.89939059]
[1644354825628,47.9831736,112.73,112.62,48.89939059]
[1644354825929,47.9831736,112.73,112.62,54.89939059]
[1644354827029,48.2331736,112.73,112.62,54.89939059]
[1644354827830,47.9831736,112.73,112.62,54.89939059]
[1644354828128,47.9831736,112.73,112.65,13.3128]
[1644354828328,47.9831736,112.73,112.66,33.88825304]
[1644354829032,47.9831736,112.73,112.66,47.19975304]
[1644354829229,10.75,112.78,112.66,47.44975304]
[1644354829430,98.6698,112.79,112.66,47.44975304]
[1644354829633,100.77755549,112.79,112.66,53.44975304]
[1644354830235,42.52331909,112.78,112.66,53.44975304]
[1644354830430,42.52331909,112.78,112.66,19.5615]
[1644354830630,44.63107458,112.78,112.66,19.5615]
[1644354831231,42.77331909,112.78,112.66,19.5615]
[1644354831434,42.77331909,112.78,112.69,13.3076]
[1644354831833,42.77331909,112.78,112.69,13.5576]
[1644354832235,42.52331909,112.78,112.69,13.5576]
[1644354832835,42.52331909,112.78,112.69,19.93461383]
[1644354833038,42.52331909,112.78,112.69,27.69661383]
[1644354833236,42.52331909,112.78,112.69,33.69661383]
[1644354833437,42.52331909,112.78,112.69,44.44661383]
[1644354834538,42.52331909,112.78,112.69,38.0696]
[1644354834738,42.77331909,112.78,112.69,38.0696]
[1644354835338,42.77331909,112.78,112.69,77.82317314]
[1644354836138,42.52331909,112.78,112.69,37.8196]
[1644354836960,42.52331909,112.78,112.69,30.0576]
[1644354837658,42.77331909,112.78,112.69,30.0576]
[1644354838259,42.77331909,112.78,112.69,24.0576]
[1644354838460,42.77331909,112.78,112.69,24.3076]
[1644354839064,42.77331909,112.78,112.69,30.3076]
[1644354839363,42.77331909,112.78,112.69,24.3076]
[1644354841063,56.08281909,112.78,112.69,17.0]
[1644354841262,56.08281909,112.78,112.69,10.75]
[1644354842562,2.10775549,112.77,112.65,0.024]
[1644354842764,13.313,112.75,112.64,0.024]
[1644354842963,13.313,112.75,112.65,0.024]
[1644354843165,71.57285549,112.74,112.63,0.024]
[1644354843365,71.57285549,112.74,112.61,0.024]
[1644354843564,45.32463774,112.73,112.61,31.71728029]
[1644354843764,58.63973774,112.73,112.63,13.315]
[1644354844164,58.63973774,112.73,112.63,13.565]
[1644354844965,58.63973774,112.73,112.63,24.97438293]
[1644354846065,58.63973774,112.73,112.63,13.565]
[1644354846465,58.88973774,112.73,112.63,13.565]
[1644354847068,58.88973774,112.73,112.63,13.315]
[1644354848366,58.88973774,112.73,112.63,13.565]
[1644354848767,58.88973774,112.73,112.63,13.315]
[1644354849267,2.10775549,112.72,112.63,13.315]
[1644354849467,41.43844656,112.71,112.63,13.315]
[1644354849668,41.43844656,112.71,112.63,19.81453306]
[1644354849868,69.4651,112.74,112.63,19.81453306]
[1644354850069,5.8812424,112.78,112.67,13.3098]
[1644354850270,5.8812424,112.78,112.67,23.4038]
[1644354850469,79.85889631,112.8,112.67,40.1538]
[1644354850868,43.92759849,112.79,112.67,40.1538]
[1644354851268,2.10775549,112.78,112.67,46.65333306]
[1644354851466,102.72199631,112.8,112.67,46.65333306]
[1644354851467,38.37891347,112.77,112.67,46.65333306]
[1644354852272,38.62891347,112.77,112.67,46.65333306]
[1644354852472,38.62891347,112.77,112.67,40.1538]
[1644354852674,38.62891347,112.77,112.67,30.3098]
[1644354852871,38.62891347,112.77,112.67,24.3098]
[1644354853072,38.37891347,112.77,112.67,24.3098]
[1644354853471,38.37891347,112.77,112.67,30.3098]
[1644354853773,38.37891347,112.77,112.67,36.03818157]
[1644354853970,38.37891347,112.77,112.67,37.30876103]
[1644354854174,38.37891347,112.77,112.67,36.03818157]
[1644354854571,38.62891347,112.77,112.67,36.03818157]
[1644354854972,38.62891347,112.77,112.67,37.30876103]
[1644354855374,38.37891347,112.77,112.67,37.30876103]
[1644354855573,22.8631,112.8,112.67,51.79842853]
[1644354855773,22.8631,112.8,112.67,59.73042853]
[1644354856273,22.8631,112.8,112.67,60.95490718]
[1644354856473,22.8631,112.8,112.67,59.73042853]
[1644354856674,47.86336628,112.79,112.67,59.73042853]
[1644354857276,47.86336628,112.79,112.67,53.02290718]
[1644354857673,47.86336628,112.79,112.67,51.79842853]
[1644354861773,61.17116628,112.79,112.67,44.7994675]
[1644354862576,61.17116628,112.79,112.67,30.0598]
[1644354862776,62.42476259,112.79,112.67,30.0598]
[1644354863175,62.42476259,112.79,112.67,33.77626047]
[1644354863376,62.42476259,112.79,112.67,30.0598]
[1644354863578,62.42476259,112.79,112.67,24.0598]
[1644354863775,62.42476259,112.79,112.67,24.3098]
[1644354864279,64.78251808,112.79,112.65,13.3369]
[1644354864478,13.3145,112.75,112.65,13.3129]
[1644354864677,40.79721944,112.74,112.65,13.3369]